[Event "Early-Titled-Tuesday-Blitz-October-10-2023"]
[Site "Chess.com"]
[Date "2023.10.10"]
[Round "7"]
[White "slorovel"]
[Black "valemava"]
[Result "0-1"]
[WhiteElo "2491"]
[BlackElo "2293"]
[TimeControl "180+1"]
[EndTime "9:10:57 PDT"]
[Termination "valemava won by resignation"]

1. e4 {[%clk 0:02:53.4]} 1... c5 {[%clk 0:02:58.7]} 2. Nf3 {[%clk 0:02:52.4]}
2... Qa5 {[%clk 0:02:56.8]} 3. g3 {[%clk 0:02:49]} 3... b5 {[%clk 0:02:53.6]} 4.
Bg2 {[%clk 0:02:46]} 4... Bb7 {[%clk 0:02:53.8]} 5. Qe2 {[%clk 0:02:38.8]} 5...
Nc6 {[%clk 0:02:51.6]} 6. c3 {[%clk 0:02:34.9]} 6... e6 {[%clk 0:02:38.8]} 7.
O-O {[%clk 0:02:30]} 7... Nf6 {[%clk 0:02:30.4]} 8. d4 {[%clk 0:02:16.4]} 8...
cxd4 {[%clk 0:02:24]} 9. cxd4 {[%clk 0:02:17.3]} 9... b4 {[%clk 0:02:23.9]} 10.
Bd2 {[%clk 0:02:12.8]} 10... Ba6 {[%clk 0:02:22.1]} 11. Qe1 {[%clk 0:02:09.9]}
11... Bxf1 {[%clk 0:02:21.5]} 12. Bxf1 {[%clk 0:02:10.8]} 12... Qb6 {[%clk
0:02:17.4]} 13. d5 {[%clk 0:02:10.6]} 13... Nd4 {[%clk 0:02:12.8]} 14. Nxd4
{[%clk 0:02:09.8]} 14... Qxd4 {[%clk 0:02:12.4]} 15. dxe6 {[%clk 0:02:08.3]}
15... fxe6 {[%clk 0:02:11.4]} 16. Bg2 {[%clk 0:02:06.4]} 16... Rc8 {[%clk
0:02:01.6]} 17. a3 {[%clk 0:02:04.7]} 17... Qxb2 {[%clk 0:01:59.5]} 18. axb4
{[%clk 0:02:04.4]} 0-1

[Event "Early-Titled-Tuesday-Blitz-October-10-2023"]
[Site "Chess.com"]
[Date "2023.10.10"]
[Round "7"]
[White "Aleksandar-Topalov"]
[Black "lolo9292"]
[Result "1-0"]
[WhiteElo "2388"]
[BlackElo "2161"]
[TimeControl "180+1"]
[EndTime "9:11:21 PDT"]
[Termination "Aleksandar-Topalov won by resignation"]

1. b3 {[%clk 0:03:00.9]} 1... e5 {[%clk 0:02:59.5]} 2. Bb2 {[%clk 0:03:00.4]}
2... d6 {[%clk 0:03:00.4]} 3. d4 {[%clk 0:02:59.8]} 3... exd4 {[%clk 0:03:01.3]}
4. Qxd4 {[%clk 0:02:59.1]} 4... Nf6 {[%clk 0:02:56.2]} 5. Nc3 {[%clk 0:02:57.9]}
5... Nc6 {[%clk 0:02:56]} 6. Qf4 {[%clk 0:02:57.8]} 6... Ne5 {[%clk 0:02:49]} 7.
O-O-O {[%clk 0:02:50.6]} 7... Be6 {[%clk 0:02:44.4]} 8. h3 {[%clk 0:02:42]} 8...
Qd7 {[%clk 0:02:42.3]} 9. e4 {[%clk 0:02:23.9]} 9... O-O-O {[%clk 0:02:39.7]}
10. Qe3 {[%clk 0:02:22.7]} 10... Kb8 {[%clk 0:02:37.7]} 11. f4 {[%clk
0:02:22.5]} 11... Nc6 {[%clk 0:02:19.4]} 12. f5 {[%clk 0:02:22.5]} 12... Bxf5
{[%clk 0:02:20]} 13. exf5 {[%clk 0:02:22.6]} 13... Qxf5 {[%clk 0:02:20.9]} 14.
Nf3 {[%clk 0:02:11.5]} 14... Re8 {[%clk 0:02:20]} 15. Bd3 {[%clk 0:01:59.5]}
15... Qa5 {[%clk 0:02:15.9]} 16. Qd2 {[%clk 0:01:51.8]} 16... Nb4 {[%clk
0:02:15.4]} 17. Rhe1 {[%clk 0:01:48.5]} 17... Nxa2+ {[%clk 0:02:12.2]} 18. Nxa2
{[%clk 0:01:47.9]} 18... Qxa2 {[%clk 0:02:13.1]} 19. Bxf6 {[%clk 0:01:41.3]}
19... Rxe1 {[%clk 0:02:11.6]} 20. Rxe1 {[%clk 0:01:40]} 1-0

[Event "Early-Titled-Tuesday-Blitz-October-10-2023"]
[Site "Chess.com"]
[Date "2023.10.10"]
[Round "7"]
[White "VincentKeymer"]
[Black "dziththaulydcc"]
[Result "1-0"]
[WhiteElo "3092"]
[BlackElo "2797"]
[TimeControl "180+1"]
[EndTime "9:11:39 PDT"]
[Termination "VincentKeymer won by resignation"]

1. Nf3 {[%clk 0:03:00.9]} 1... Nf6 {[%clk 0:02:51.4]} 2. c4 {[%clk 0:03:01.2]}
2... e6 {[%clk 0:02:50.5]} 3. Nc3 {[%clk 0:03:01.9]} 3... b6 {[%clk 0:02:50]} 4.
e4 {[%clk 0:03:01.5]} 4... Bb7 {[%clk 0:02:50.7]} 5. e5 {[%clk 0:03:01.9]} 5...
Ne4 {[%clk 0:02:50.4]} 6. Qe2 {[%clk 0:03:02.3]} 6... Nxc3 {[%clk 0:02:50.3]} 7.
dxc3 {[%clk 0:03:03.2]} 7... Be7 {[%clk 0:02:50.5]} 8. Bf4 {[%clk 0:03:03.3]}
8... O-O {[%clk 0:02:50.3]} 9. O-O-O {[%clk 0:03:03.5]} 9... d5 {[%clk
0:02:44.6]} 10. cxd5 {[%clk 0:02:55.5]} 10... exd5 {[%clk 0:02:44.7]} 11. h4
{[%clk 0:02:56.1]} 11... c5 {[%clk 0:02:44]} 12. Ng5 {[%clk 0:02:55.3]} 12... h6
{[%clk 0:02:42.7]} 13. Qh5 {[%clk 0:02:50.5]} 13... Qe8 {[%clk 0:02:24.5]} 14.
Qg4 {[%clk 0:02:40.7]} 14... Qd7 {[%clk 0:02:20.6]} 15. Qg3 {[%clk 0:02:26.7]}
15... f6 {[%clk 0:01:56.8]} 16. exf6 {[%clk 0:02:21.1]} 16... Bxf6 {[%clk
0:01:54.4]} 17. Bd3 {[%clk 0:02:20.8]} 17... Nc6 {[%clk 0:01:48.9]} 18. Nh7
{[%clk 0:02:18.8]} 18... Rf7 {[%clk 0:01:43.7]} 19. Bxh6 {[%clk 0:02:17.4]}
19... Be5 {[%clk 0:01:42.5]} 20. f4 {[%clk 0:02:16.4]} 20... Bc7 {[%clk
0:01:35.9]} 21. Qg6 {[%clk 0:02:09.8]} 21... Ne7 {[%clk 0:01:33]} 22. Nf6+
{[%clk 0:02:06.4]} 1-0

[Event "Early-Titled-Tuesday-Blitz-October-10-2023"]
[Site "Chess.com"]
[Date "2023.10.10"]
[Round "7"]
[White "Maksimus1998"]
[Black "unclear15"]
[Result "1-0"]
[WhiteElo "2622"]
[BlackElo "2448"]
[TimeControl "180+1"]
[EndTime "9:11:50 PDT"]
[Termination "Maksimus1998 won by resignation"]

1. d4 {[%clk 0:03:00.9]} 1... Nf6 {[%clk 0:02:56.5]} 2. Nf3 {[%clk 0:02:59.8]}
2... e6 {[%clk 0:02:56.3]} 3. Bf4 {[%clk 0:02:59.1]} 3... c5 {[%clk 0:02:56.7]}
4. e3 {[%clk 0:02:57.3]} 4... Nc6 {[%clk 0:02:55.8]} 5. Nbd2 {[%clk 0:02:56.6]}
5... d5 {[%clk 0:02:55.7]} 6. c3 {[%clk 0:02:54.4]} 6... Bd6 {[%clk 0:02:56.2]}
7. Bg3 {[%clk 0:02:53.9]} 7... Bxg3 {[%clk 0:02:54.7]} 8. hxg3 {[%clk
0:02:53.3]} 8... O-O {[%clk 0:02:55.6]} 9. Bd3 {[%clk 0:02:49.9]} 9... Qe7
{[%clk 0:02:54.8]} 10. Qe2 {[%clk 0:02:49.1]} 10... e5 {[%clk 0:02:53.2]} 11.
dxe5 {[%clk 0:02:48.6]} 11... Nxe5 {[%clk 0:02:54.1]} 12. Nxe5 {[%clk
0:02:48.3]} 12... Qxe5 {[%clk 0:02:55]} 13. Nf3 {[%clk 0:02:47.6]} 13... Qe7
{[%clk 0:02:52.9]} 14. Rd1 {[%clk 0:02:21.7]} 14... a6 {[%clk 0:02:45.3]} 15.
Ng5 {[%clk 0:02:07.4]} 15... h6 {[%clk 0:02:43.6]} 16. Nh3 {[%clk 0:02:05.2]}
16... Bg4 {[%clk 0:02:41.2]} 17. f3 {[%clk 0:02:04.9]} 17... Bxh3 {[%clk
0:02:37.4]} 18. Rxh3 {[%clk 0:02:05.8]} 18... b5 {[%clk 0:02:33.1]} 19. Kf2
{[%clk 0:02:03.6]} 19... Rfe8 {[%clk 0:02:32.1]} 20. Rhh1 {[%clk 0:02:01.4]}
20... Rad8 {[%clk 0:02:30.8]} 21. Rhe1 {[%clk 0:02:00.6]} 21... Qe5 {[%clk
0:02:28.3]} 22. Bc2 {[%clk 0:01:56.6]} 22... Qg5 {[%clk 0:02:22]} 23. g4 {[%clk
0:01:38.3]} 23... Qxg4 {[%clk 0:02:21.1]} 24. fxg4 {[%clk 0:01:36.6]} 24... Re5
{[%clk 0:02:03.7]} 25. Kg1 {[%clk 0:01:33.5]} 1-0

[Event "Early-Titled-Tuesday-Blitz-October-10-2023"]
[Site "Chess.com"]
[Date "2023.10.10"]
[Round "7"]
[White "UK_23"]
[Black "ivana_999"]
[Result "0-1"]
[WhiteElo "2365"]
[BlackElo "2084"]
[TimeControl "180+1"]
[EndTime "9:12:21 PDT"]
[Termination "ivana_999 won by resignation"]

1. e4 {[%clk 0:02:59.2]} 1... e6 {[%clk 0:03:00.4]} 2. d4 {[%clk 0:02:56.8]}
2... d5 {[%clk 0:03:00.7]} 3. Nc3 {[%clk 0:02:57.1]} 3... Nf6 {[%clk 0:03:00.5]}
4. e5 {[%clk 0:02:57.2]} 4... Ng8 {[%clk 0:03:00.7]} 5. f4 {[%clk 0:02:57.3]}
5... c5 {[%clk 0:03:00.8]} 6. Nf3 {[%clk 0:02:57.2]} 6... Nc6 {[%clk 0:03:00.7]}
7. Ne2 {[%clk 0:02:55.4]} 7... Nh6 {[%clk 0:02:56.7]} 8. c3 {[%clk 0:02:55]}
8... cxd4 {[%clk 0:02:56.1]} 9. cxd4 {[%clk 0:02:54.7]} 9... Nf5 {[%clk
0:02:55.4]} 10. a3 {[%clk 0:02:49]} 10... h5 {[%clk 0:02:54.7]} 11. b3 {[%clk
0:02:40.2]} 11... Qb6 {[%clk 0:02:41]} 12. g3 {[%clk 0:02:34.4]} 12... Bd7
{[%clk 0:02:22.5]} 13. Bg2 {[%clk 0:02:32.1]} 13... Rc8 {[%clk 0:02:20.7]} 14.
Rb1 {[%clk 0:02:15.8]} 14... Na5 {[%clk 0:01:58]} 15. O-O {[%clk 0:02:07]} 15...
Bb5 {[%clk 0:01:49.4]} 16. Re1 {[%clk 0:01:59.4]} 16... Qa6 {[%clk 0:01:34.2]}
17. a4 {[%clk 0:01:39.7]} 17... Bd3 {[%clk 0:01:26.7]} 18. Ra1 {[%clk
0:01:30.1]} 18... Bc2 {[%clk 0:01:21.7]} 19. Qd2 {[%clk 0:01:30.1]} 19... Nxb3
{[%clk 0:01:19.3]} 0-1

[Event "Early-Titled-Tuesday-Blitz-October-10-2023"]
[Site "Chess.com"]
[Date "2023.10.10"]
[Round "7"]
[White "SchachmattTV_Tobi"]
[Black "kreonx"]
[Result "1-0"]
[WhiteElo "2594"]
[BlackElo "2456"]
[TimeControl "180+1"]
[EndTime "9:12:47 PDT"]
[Termination "SchachmattTV_Tobi won by resignation"]

1. e4 {[%clk 0:03:00.9]} 1... c6 {[%clk 0:02:55.8]} 2. d4 {[%clk 0:02:56.3]}
2... d5 {[%clk 0:02:56.4]} 3. e5 {[%clk 0:02:56]} 3... c5 {[%clk 0:02:56.7]} 4.
c3 {[%clk 0:02:51]} 4... Nc6 {[%clk 0:02:56.1]} 5. a3 {[%clk 0:02:49.5]} 5...
cxd4 {[%clk 0:02:55]} 6. cxd4 {[%clk 0:02:50.4]} 6... Nh6 {[%clk 0:02:54.3]} 7.
Bxh6 {[%clk 0:02:47]} 7... gxh6 {[%clk 0:02:55.2]} 8. Nc3 {[%clk 0:02:47.2]}
8... Bg7 {[%clk 0:02:51.2]} 9. Be2 {[%clk 0:02:44.4]} 9... a6 {[%clk 0:02:48.5]}
10. Rc1 {[%clk 0:02:41.8]} 10... Be6 {[%clk 0:02:43.2]} 11. Nf3 {[%clk
0:02:40.4]} 11... Bg4 {[%clk 0:02:43.8]} 12. O-O {[%clk 0:02:32.6]} 12... e6
{[%clk 0:02:42.1]} 13. Na4 {[%clk 0:02:30.1]} 13... Rc8 {[%clk 0:02:38.3]} 14.
Nc5 {[%clk 0:02:29.1]} 14... a5 {[%clk 0:02:35.3]} 15. Nxb7 {[%clk 0:02:26.6]}
15... Qb6 {[%clk 0:02:34.6]} 16. Nd6+ {[%clk 0:02:26.4]} 16... Ke7 {[%clk
0:02:35.2]} 17. Nxc8+ {[%clk 0:02:24.5]} 17... Rxc8 {[%clk 0:02:36.1]} 18. Qa4
{[%clk 0:02:13.7]} 18... Rc7 {[%clk 0:02:23.5]} 19. Rc3 {[%clk 0:01:51]} 19...
Nb8 {[%clk 0:02:03.2]} 20. Qc2 {[%clk 0:01:27.9]} 20... Rb7 {[%clk 0:01:56.1]}
21. Qxh7 {[%clk 0:01:14]} 21... Bxf3 {[%clk 0:01:49.2]} 22. Rxf3 {[%clk
0:01:09.8]} 22... Kf8 {[%clk 0:01:47.1]} 23. Rg3 {[%clk 0:01:08.6]} 23... f5
{[%clk 0:01:47.6]} 24. exf6 {[%clk 0:01:06.6]} 24... Qxd4 {[%clk 0:01:47.3]} 25.
fxg7+ {[%clk 0:01:04.4]} 25... Rxg7 {[%clk 0:01:48.2]} 26. Qxh6 {[%clk
0:00:58.8]} 26... Nd7 {[%clk 0:01:45.2]} 27. Rxg7 {[%clk 0:00:57.8]} 27... Qxg7
{[%clk 0:01:46.1]} 28. Qxg7+ {[%clk 0:00:58.7]} 28... Kxg7 {[%clk 0:01:46.5]}
29. Rc1 {[%clk 0:00:58.9]} 29... Ne5 {[%clk 0:01:45.3]} 30. b4 {[%clk
0:00:58.4]} 30... axb4 {[%clk 0:01:44.8]} 31. axb4 {[%clk 0:00:58.7]} 1-0

[Event "Early-Titled-Tuesday-Blitz-October-10-2023"]
[Site "Chess.com"]
[Date "2023.10.10"]
[Round "7"]
[White "GlavkonVVS"]
[Black "maximnovik"]
[Result "0-1"]
[WhiteElo "2544"]
[BlackElo "2458"]
[TimeControl "180+1"]
[EndTime "9:13:15 PDT"]
[Termination "maximnovik won by resignation"]

1. c4 {[%clk 0:02:50.3]} 1... Nf6 {[%clk 0:02:59.3]} 2. Nc3 {[%clk 0:02:49.7]}
2... d5 {[%clk 0:02:58.5]} 3. cxd5 {[%clk 0:02:49.1]} 3... Nxd5 {[%clk
0:02:58.4]} 4. Qb3 {[%clk 0:02:50]} 4... Nxc3 {[%clk 0:02:57.4]} 5. bxc3 {[%clk
0:02:46.4]} 5... g6 {[%clk 0:02:55.4]} 6. Ba3 {[%clk 0:02:46.4]} 6... Bg7 {[%clk
0:02:54.9]} 7. Nf3 {[%clk 0:02:46.7]} 7... Nd7 {[%clk 0:02:46.6]} 8. d4 {[%clk
0:02:46.7]} 8... c5 {[%clk 0:02:46.5]} 9. e3 {[%clk 0:02:47]} 9... Qc7 {[%clk
0:02:46.4]} 10. Be2 {[%clk 0:02:43.4]} 10... b6 {[%clk 0:02:46.3]} 11. O-O
{[%clk 0:02:43.6]} 11... Bb7 {[%clk 0:02:45.9]} 12. Rac1 {[%clk 0:02:44.3]}
12... O-O {[%clk 0:02:45.5]} 13. Rfd1 {[%clk 0:02:44.5]} 13... Rfd8 {[%clk
0:02:41.9]} 14. c4 {[%clk 0:02:44.8]} 14... cxd4 {[%clk 0:02:40.3]} 15. exd4
{[%clk 0:02:44.1]} 15... e6 {[%clk 0:02:37.7]} 16. d5 {[%clk 0:02:40]} 16... Nc5
{[%clk 0:02:34.2]} 17. Qe3 {[%clk 0:02:37]} 17... e5 {[%clk 0:02:31]} 18. Bb2
{[%clk 0:02:31]} 18... Re8 {[%clk 0:02:23.9]} 19. d6 {[%clk 0:02:24.6]} 19...
Qd7 {[%clk 0:02:23.6]} 20. h4 {[%clk 0:02:10.9]} 20... h6 {[%clk 0:02:22.8]} 21.
h5 {[%clk 0:02:09.9]} 21... g5 {[%clk 0:02:22.6]} 22. Nxg5 {[%clk 0:02:02.9]}
22... hxg5 {[%clk 0:02:20.7]} 23. Qxg5 {[%clk 0:02:03.5]} 23... Re6 {[%clk
0:02:15.9]} 24. Bg4 {[%clk 0:01:59.3]} 24... Kh8 {[%clk 0:02:14.9]} 25. Bxe6
{[%clk 0:01:59]} 25... Qxe6 {[%clk 0:02:14.8]} 26. f4 {[%clk 0:01:51.8]} 26...
Rg8 {[%clk 0:02:12.4]} 27. Bxe5 {[%clk 0:01:40.3]} 27... f6 {[%clk 0:02:06.4]}
28. Qg6 {[%clk 0:01:29.8]} 28... fxe5 {[%clk 0:02:06]} 29. Qxe6 {[%clk
0:01:30.1]} 29... Nxe6 {[%clk 0:02:05.9]} 30. d7 {[%clk 0:01:28.5]} 30... exf4
{[%clk 0:02:04.8]} 31. Rd6 {[%clk 0:01:28.3]} 31... Bd4+ {[%clk 0:02:02.5]} 32.
Kf1 {[%clk 0:01:24.8]} 32... Bxg2+ {[%clk 0:02:01.9]} 33. Ke1 {[%clk 0:01:24.3]}
33... Bh3 {[%clk 0:01:56.1]} 34. Rd1 {[%clk 0:01:21.3]} 34... Bc3+ {[%clk
0:01:53.6]} 35. Ke2 {[%clk 0:01:19.8]} 35... Bg4+ {[%clk 0:01:53.6]} 36. Kd3
{[%clk 0:01:20.1]} 36... Bxd1 {[%clk 0:01:53.4]} 37. Kxc3 {[%clk 0:01:20.6]}
37... Bg4 {[%clk 0:01:53]} 38. h6 {[%clk 0:01:15.3]} 38... Kh7 {[%clk
0:01:52.2]} 39. Kd2 {[%clk 0:01:13.9]} 39... f3 {[%clk 0:01:52.1]} 40. Ke3
{[%clk 0:01:14]} 40... Rf8 {[%clk 0:01:52.1]} 41. Kf2 {[%clk 0:01:13.8]} 41...
Kxh6 {[%clk 0:01:51.2]} 42. a4 {[%clk 0:01:11.9]} 42... Kg5 {[%clk 0:01:50.8]}
0-1

[Event "Early-Titled-Tuesday-Blitz-October-10-2023"]
[Site "Chess.com"]
[Date "2023.10.10"]
[Round "7"]
[White "LeoLV10"]
[Black "amylazy"]
[Result "1-0"]
[WhiteElo "2562"]
[BlackElo "2402"]
[TimeControl "180+1"]
[EndTime "9:13:17 PDT"]
[Termination "LeoLV10 won by resignation"]

1. e4 {[%clk 0:02:56.4]} 1... c5 {[%clk 0:02:59.6]} 2. Nf3 {[%clk 0:02:56.3]}
2... e6 {[%clk 0:02:59.7]} 3. d4 {[%clk 0:02:57.2]} 3... cxd4 {[%clk 0:03:00.3]}
4. Nxd4 {[%clk 0:02:58.1]} 4... a6 {[%clk 0:03:00.8]} 5. Bd3 {[%clk 0:02:57.7]}
5... Bc5 {[%clk 0:03:00.2]} 6. Nb3 {[%clk 0:02:57.8]} 6... Be7 {[%clk
0:03:00.9]} 7. O-O {[%clk 0:02:57.1]} 7... d5 {[%clk 0:02:59.8]} 8. exd5 {[%clk
0:02:53.5]} 8... Qxd5 {[%clk 0:03:00.7]} 9. Nc3 {[%clk 0:02:53.7]} 9... Qd8
{[%clk 0:03:00.8]} 10. Qe2 {[%clk 0:02:53.5]} 10... Nf6 {[%clk 0:03:01.2]} 11.
Be3 {[%clk 0:02:52.4]} 11... O-O {[%clk 0:03:01.1]} 12. a4 {[%clk 0:02:52.4]}
12... b6 {[%clk 0:02:59.2]} 13. Rfd1 {[%clk 0:02:50.5]} 13... Qc7 {[%clk
0:02:58.6]} 14. Qf3 {[%clk 0:02:40.8]} 14... Bb7 {[%clk 0:02:57.9]} 15. Qh3
{[%clk 0:02:41.4]} 15... Nbd7 {[%clk 0:02:50.7]} 16. a5 {[%clk 0:02:40.9]} 16...
b5 {[%clk 0:02:48.2]} 17. Rac1 {[%clk 0:02:28.4]} 17... Rfe8 {[%clk 0:02:47.7]}
18. Ne2 {[%clk 0:02:25.9]} 18... Nf8 {[%clk 0:02:47.5]} 19. Bf4 {[%clk
0:02:14.1]} 19... Qc8 {[%clk 0:02:40]} 20. c4 {[%clk 0:02:06.2]} 20... b4 {[%clk
0:02:39.3]} 21. Be3 {[%clk 0:01:59.8]} 21... Rd8 {[%clk 0:02:34.1]} 22. Bb6
{[%clk 0:01:56.4]} 22... Rxd3 {[%clk 0:02:31.9]} 23. Qxd3 {[%clk 0:01:52.2]}
23... N8d7 {[%clk 0:02:25.9]} 24. c5 {[%clk 0:01:50.3]} 24... Ne5 {[%clk
0:02:25.3]} 25. Qg3 {[%clk 0:01:47.4]} 25... Ng6 {[%clk 0:02:21.7]} 26. c6
{[%clk 0:01:41.4]} 26... Bxc6 {[%clk 0:02:20.2]} 27. Ned4 {[%clk 0:01:41.6]}
27... Ne4 {[%clk 0:02:11.7]} 28. Nxc6 {[%clk 0:01:29.6]} 28... Nxg3 {[%clk
0:01:51.7]} 29. Nxe7+ {[%clk 0:01:28.9]} 29... Nxe7 {[%clk 0:01:52.6]} 30. Rxc8+
{[%clk 0:01:28.9]} 30... Rxc8 {[%clk 0:01:52.7]} 31. hxg3 {[%clk 0:01:29.6]}
31... Nd5 {[%clk 0:01:53.4]} 32. Nc5 {[%clk 0:01:19.6]} 32... h5 {[%clk
0:01:44.4]} 33. Nxa6 {[%clk 0:01:18]} 33... Rc2 {[%clk 0:01:45.3]} 34. Bd4
{[%clk 0:01:09.4]} 34... f6 {[%clk 0:01:43.1]} 35. Nb8 {[%clk 0:00:53.4]} 35...
e5 {[%clk 0:01:41.3]} 36. Bxe5 {[%clk 0:00:52.1]} 1-0

[Event "Early-Titled-Tuesday-Blitz-October-10-2023"]
[Site "Chess.com"]
[Date "2023.10.10"]
[Round "7"]
[White "Barmen_EV"]
[Black "Grandmaster1369"]
[Result "0-1"]
[WhiteElo "2490"]
[BlackElo "2776"]
[TimeControl "180+1"]
[EndTime "9:13:20 PDT"]
[Termination "Grandmaster1369 won by resignation"]

1. e4 {[%clk 0:03:00.9]} 1... c5 {[%clk 0:03:00.3]} 2. c3 {[%clk 0:03:00]} 2...
d5 {[%clk 0:02:58.6]} 3. exd5 {[%clk 0:03:00.5]} 3... Qxd5 {[%clk 0:02:59.5]} 4.
d4 {[%clk 0:03:01.4]} 4... Nf6 {[%clk 0:02:59.9]} 5. Nf3 {[%clk 0:03:01.7]} 5...
e6 {[%clk 0:03:00.2]} 6. Bd3 {[%clk 0:03:01.5]} 6... Be7 {[%clk 0:02:59.6]} 7.
O-O {[%clk 0:03:02]} 7... O-O {[%clk 0:03:00]} 8. Be3 {[%clk 0:03:00.2]} 8...
Rd8 {[%clk 0:02:59.1]} 9. h3 {[%clk 0:02:59.9]} 9... Nc6 {[%clk 0:02:58.9]} 10.
Re1 {[%clk 0:02:58.7]} 10... b6 {[%clk 0:02:57.1]} 11. Bc2 {[%clk 0:02:54.2]}
11... cxd4 {[%clk 0:02:50.7]} 12. cxd4 {[%clk 0:02:55.1]} 12... Bb7 {[%clk
0:02:50.5]} 13. Nc3 {[%clk 0:02:55.2]} 13... Qh5 {[%clk 0:02:50.9]} 14. a3
{[%clk 0:02:52.2]} 14... Rac8 {[%clk 0:02:45.3]} 15. Qd3 {[%clk 0:02:41.7]}
15... Na5 {[%clk 0:02:14.8]} 16. Ne5 {[%clk 0:02:21.1]} 16... Bd6 {[%clk
0:02:06.8]} 17. Bf4 {[%clk 0:02:08.2]} 17... Nc4 {[%clk 0:02:05.9]} 18. Bd1
{[%clk 0:00:39.2]} 18... Nxb2 {[%clk 0:02:04.9]} 19. Qg3 {[%clk 0:00:19.6]}
19... Nxd1 {[%clk 0:02:01.8]} 20. Raxd1 {[%clk 0:00:18.9]} 20... Bf8 {[%clk
0:01:43.4]} 21. f3 {[%clk 0:00:14.4]} 21... Rxc3 {[%clk 0:01:40.6]} 0-1

[Event "Early-Titled-Tuesday-Blitz-October-10-2023"]
[Site "Chess.com"]
[Date "2023.10.10"]
[Round "7"]
[White "seopie"]
[Black "Drags95"]
[Result "1-0"]
[WhiteElo "2797"]
[BlackElo "2872"]
[TimeControl "180+1"]
[EndTime "9:13:25 PDT"]
[Termination "seopie won by resignation"]

1. c4 {[%clk 0:03:00.9]} 1... c6 {[%clk 0:02:58.7]} 2. d4 {[%clk 0:02:56.1]}
2... d5 {[%clk 0:02:58.9]} 3. Nf3 {[%clk 0:02:56.2]} 3... Nf6 {[%clk 0:02:59.3]}
4. e3 {[%clk 0:02:55.8]} 4... Bg4 {[%clk 0:02:58.7]} 5. h3 {[%clk 0:02:55.4]}
5... Bh5 {[%clk 0:02:58.7]} 6. Nc3 {[%clk 0:02:54.4]} 6... e6 {[%clk 0:02:56.8]}
7. g4 {[%clk 0:02:54.2]} 7... Bg6 {[%clk 0:02:56.7]} 8. Ne5 {[%clk 0:02:54.8]}
8... Nbd7 {[%clk 0:02:57.1]} 9. Nxg6 {[%clk 0:02:55]} 9... hxg6 {[%clk 0:02:58]}
10. g5 {[%clk 0:02:46]} 10... Ne4 {[%clk 0:02:57.3]} 11. Nxe4 {[%clk 0:02:45.9]}
11... dxe4 {[%clk 0:02:58.2]} 12. h4 {[%clk 0:02:42.7]} 12... c5 {[%clk
0:02:00.8]} 13. Bg2 {[%clk 0:02:37.7]} 13... cxd4 {[%clk 0:01:55.4]} 14. exd4
{[%clk 0:02:36.6]} 14... Qc7 {[%clk 0:01:49.6]} 15. Qb3 {[%clk 0:02:19.1]} 15...
Nb6 {[%clk 0:01:09.8]} 16. Qb5+ {[%clk 0:02:12.9]} 16... Qd7 {[%clk 0:01:06.8]}
17. Qxd7+ {[%clk 0:02:12.4]} 17... Kxd7 {[%clk 0:01:07.7]} 18. b3 {[%clk
0:02:06.1]} 18... f5 {[%clk 0:00:58.5]} 19. gxf6 {[%clk 0:02:05.9]} 19... gxf6
{[%clk 0:00:58.8]} 20. Bxe4 {[%clk 0:02:05.5]} 20... f5 {[%clk 0:00:53.7]} 21.
Bxb7 {[%clk 0:02:05]} 21... Rb8 {[%clk 0:00:54.3]} 22. Bf3 {[%clk 0:02:03.9]}
22... Bg7 {[%clk 0:00:54.8]} 23. Be3 {[%clk 0:02:01.9]} 23... Bf6 {[%clk
0:00:51.8]} 24. h5 {[%clk 0:01:50.1]} 24... g5 {[%clk 0:00:51.4]} 25. O-O-O
{[%clk 0:01:50.1]} 25... f4 {[%clk 0:00:39.9]} 26. Bd2 {[%clk 0:01:49.3]} 26...
Rhc8 {[%clk 0:00:40.7]} 27. Bc3 {[%clk 0:01:40.2]} 27... Nd5 {[%clk 0:00:40.9]}
28. Bb2 {[%clk 0:01:35.5]} 28... Nb4 {[%clk 0:00:41]} 29. Kb1 {[%clk 0:01:34.8]}
29... a5 {[%clk 0:00:41.5]} 30. d5 {[%clk 0:01:30.5]} 30... e5 {[%clk
0:00:40.2]} 31. Bg4+ {[%clk 0:01:30.1]} 1-0

[Event "Early-Titled-Tuesday-Blitz-October-10-2023"]
[Site "Chess.com"]
[Date "2023.10.10"]
[Round "7"]
[White "NovozhilovSemen"]
[Black "Leonid_Starozhilov"]
[Result "1/2-1/2"]
[WhiteElo "2619"]
[BlackElo "2741"]
[TimeControl "180+1"]
[EndTime "9:13:34 PDT"]
[Termination "Game drawn by repetition"]

1. d4 {[%clk 0:03:00.9]} 1... Nf6 {[%clk 0:02:59.1]} 2. Nf3 {[%clk 0:03:01]}
2... g6 {[%clk 0:02:59.5]} 3. Nc3 {[%clk 0:03:00.9]} 3... Bg7 {[%clk 0:02:59.2]}
4. e4 {[%clk 0:03:00.8]} 4... d5 {[%clk 0:02:53.1]} 5. e5 {[%clk 0:03:00.5]}
5... Ne4 {[%clk 0:02:53.6]} 6. Bd3 {[%clk 0:03:00.7]} 6... Nxc3 {[%clk
0:02:54.1]} 7. bxc3 {[%clk 0:03:00.6]} 7... c5 {[%clk 0:02:54.8]} 8. Be3 {[%clk
0:03:00.8]} 8... Nc6 {[%clk 0:02:54.5]} 9. Qd2 {[%clk 0:02:59.2]} 9... c4 {[%clk
0:02:53.3]} 10. Be2 {[%clk 0:02:58.1]} 10... f6 {[%clk 0:02:53.4]} 11. Bh6
{[%clk 0:02:49.2]} 11... Bxh6 {[%clk 0:02:31.2]} 12. Qxh6 {[%clk 0:02:50.1]}
12... Qa5 {[%clk 0:02:31.7]} 13. Kd2 {[%clk 0:02:47.1]} 13... Bf5 {[%clk
0:02:30.1]} 14. Nh4 {[%clk 0:02:37.9]} 14... Nxd4 {[%clk 0:02:19.2]} 15. exf6
{[%clk 0:02:37]} 15... Nxe2 {[%clk 0:01:58.6]} 16. Kxe2 {[%clk 0:02:09]} 16...
Qxc3 {[%clk 0:01:37.5]} 17. Nxf5 {[%clk 0:02:05.1]} 17... Qxc2+ {[%clk
0:01:23.8]} 18. Kf1 {[%clk 0:02:04.1]} 18... Qxf5 {[%clk 0:01:00.5]} 19. fxe7
{[%clk 0:02:02.7]} 19... Kd7 {[%clk 0:00:54.2]} 20. Re1 {[%clk 0:01:49.5]} 20...
Rae8 {[%clk 0:00:47.4]} 21. Qg7 {[%clk 0:01:43.5]} 21... Rhg8 {[%clk 0:00:37.5]}
22. Qxh7 {[%clk 0:01:41.8]} 22... Qh5 {[%clk 0:00:18.5]} 23. Qf7 {[%clk
0:01:37.4]} 23... Qf5 {[%clk 0:00:17.7]} 24. Qh7 {[%clk 0:01:34.5]} 24... Qh5
{[%clk 0:00:18]} 25. Qf7 {[%clk 0:01:30.3]} 25... Qf5 {[%clk 0:00:18.2]} 26. Qh7
{[%clk 0:01:30.1]} 1/2-1/2